bitfinex-derivatives/quotes_SOLF0:USTF0_20250321
["timestamp","ask_amount","ask_price","bid_price","bid_amount"]
[1742585197280,31.12,128.2,128.14,35.1364]
[1742585197480,38.9243,128.2,128.14,52.85929941]
[1742585197680,0.05841058,128.18,128.17,7.8055]
[1742585199592,0.05841058,128.18,128.16,7.86594291]
[1742585201087,0.05841058,128.18,128.16,0.05974291]
[1742585202487,38.9258,128.17,128.16,0.05974291]
[1742585202689,38.9258,128.17,128.1,1.9882]
[1742585202889,31.12,128.17,128.1,1.9882]
[1742585203184,31.12,128.17,128.1,19.71109941]
[1742585203485,31.12,128.17,128.15,7.807]
[1742585203892,31.17643505,128.17,128.15,0.05082069]
[1742585204991,31.17643505,128.17,128.15,7.85772069]
[1742585205293,38.98263505,128.17,128.15,0.05082069]
[1742585205591,31.17643505,128.17,128.15,0.05082069]
[1742585205992,31.17643505,128.17,128.15,7.85782069]
[1742585206189,17.72289941,128.16,128.15,0.05082069]
[1742585206791,25.52929941,128.16,128.15,0.05082069]
[1742585207001,17.72289941,128.16,128.15,0.05082069]
[1742585207797,25.52929941,128.16,128.15,0.05082069]
[1742585211195,19.17908268,128.16,128.15,0.05082069]
[1742585211900,11.37268268,128.16,128.09,11.37268268]
[1742585212102,11.37268268,128.13,128.08,268.79268268]
[1742585212302,42.49268268,128.13,128.08,268.79268268]
[1742585212695,31.12,128.15,128.11,11.37268268]
[1742585212894,0.05902626,128.12,128.11,19.18218268]
[1742585213094,0.05902626,128.12,128.11,7.8095]
[1742585214095,31.17902626,128.12,128.1,0.05990536]
[1742585214300,31.17902626,128.12,128.1,11.43258804]
[1742585214605,0.05902626,128.12,128.11,11.37268268]
[1742585214902,0.05902626,128.12,128.11,19.18218268]
[1742585215903,0.05902626,128.12,128.1,7.86970536]
[1742585216293,0.05902626,128.12,128.11,11.37268268]
[1742585216497,0.05902626,128.12,128.1,0.05990536]
[1742585217394,0.05902626,128.12,128.1,11.43258804]
[1742585218508,0.05902626,128.12,128.11,7.8095]
[1742585219807,0.05902626,128.12,128.1,11.43258804]
[1742585219808,0.05902626,128.12,128.1,7.86970536]
[1742585220700,0.05902626,128.12,128.11,7.8095]
[1742585221599,11.43170894,128.12,128.1,0.05990536]
[1742585222306,11.43170894,128.12,128.1,7.86960536]
[1742585223406,2.626e-05,128.12,128.11,7.8095]
[1742585223704,11.37268268,128.2,128.1,11.43258804]
[1742585223905,54.70442977,128.2,128.16,7.8061]
[1742585224506,62.50882977,128.2,128.17,7.8058]
[1742585224706,0.05346143,128.19,128.17,7.85843285]
[1742585225508,0.05346143,128.19,128.17,0.05263285]
[1742585225701,7.85846143,128.19,128.17,0.05263285]
[1742585226105,31.12,128.18,128.17,0.05263285]
[1742585226306,38.9252,128.18,128.17,0.05263285]
[1742585226606,31.12,128.18,128.11,2.184]
[1742585226803,31.12,128.18,128.14,7.8075]
[1742585227008,38.9257,128.18,128.14,7.8075]
[1742585227509,38.9257,128.18,128.15,7.807]
[1742585227807,0.05590997,128.17,128.15,0.05023051]
[1742585228412,0.05590997,128.17,128.16,7.8064]
[1742585230520,9.97e-06,128.17,128.16,7.8064]
[1742585230715,43.33174709,128.22,128.21,7.8034]
[1742585230910,48.85687963,128.22,128.14,292.79]
[1742585231104,7.8047,128.19,128.14,292.79]
[1742585231309,38.9047,128.19,128.16,7.8064]
[1742585231721,38.96013229,128.19,128.16,7.86605886]
[1742585232211,31.15543229,128.19,128.16,0.05965886]
[1742585234115,7.8055,128.18,128.16,0.05965886]
[1742585234816,7.8058,128.17,128.16,0.05965886]
[1742585235211,17.75687963,128.18,128.09,261.67]
[1742585235515,17.75687963,128.15,128.09,261.67]
[1742585235718,31.1,128.14,128.09,261.67]
[1742585235906,17.75687963,128.13,128.09,257.54]
[1742585236109,17.75687963,128.13,128.05,2.061]
[1742585236316,0.05897843,128.12,128.1,0.05256263]
[1742585236514,31.1,128.11,128.1,0.05256263]
[1742585236914,38.9097,128.11,128.1,0.05256263]
[1742585238316,56.66657963,128.11,128.1,0.05256263]
[1742585238718,7.86817843,128.12,128.1,0.05256263]
[1742585241110,7.86817843,128.12,128.03,257.54]
[1742585241111,17.75687963,128.11,128.03,257.54]
[1742585241417,17.75687963,128.09,128.03,257.54]
[1742585241808,7.8114,128.08,128.05,7.8128]
[1742585242315,7.8122,128.07,128.05,0.05948397]
[1742585242513,0.0528462,128.08,128.05,0.05948397]
[1742585242717,31.1,128.07,128.05,0.05948397]
[1742585243215,38.9123,128.07,128.05,0.05948397]
[1742585243417,31.1,128.07,128.05,0.05948397]
[1742585243613,48.85687963,128.07,128.05,0.05948397]
[1742585243813,48.85687963,128.07,128.02,7.8147]
[1742585244129,17.75687963,128.03,127.9,257.24713923]
[1742585244421,17.75687963,128.04,127.9,257.24713923]
[1742585244422,17.75687963,127.97,127.9,257.24713923]
[1742585244623,31.1,127.96,127.9,257.24713923]
[1742585244823,31.1,127.96,127.9,7.8219]
[1742585245019,0.05168735,127.95,127.92,0.05264073]
[1742585245415,11.37272442,128.06,127.94,35.51375926]
[1742585245626,11.37272442,128.06,127.97,17.75687963]
[1742585245819,5.55937093,128.05,128.02,7.8149]
[1742585246124,8.8948965,128.11,128.03,33.0859]
[1742585246320,31.1,128.12,128.03,33.0859]
[1742585246321,18.41932751,128.1,128.03,33.0859]
[1742585246524,0.05525131,128.08,128.06,0.05841547]
[1742585246732,14.44998813,128.07,128.06,0.05841547]
[1742585246926,5.55768774,128.07,128.06,0.05841547]
[1742585247318,5.55768774,128.07,128.06,31.15841547]
[1742585247817,0.05525131,128.08,128.06,31.15841547]
[1742585248914,74.43174709,128.14,128.07,17.75687963]
[1742585249117,5.38816565,128.13,128.07,17.75687963]
[1742585249319,5.38816565,128.12,128.08,7.811]
[1742585249525,5.38816565,128.11,128.09,31.1]
[1742585249723,3.85558208,128.13,128.09,31.1]
[1742585250027,5.45130966,128.12,128.1,0.0499503]
[1742585250329,0.05810151,128.12,128.1,0.0499503]
[1742585254324,3.85405188,128.11,128.1,0.0499503]
[1742585254828,0.05810151,128.12,128.1,0.0499503]
[1742585255935,9.01594429,128.11,128.1,0.0499503]
[1742585256533,3.85644659,128.11,128.1,0.0499503]
[1742585257127,0.05810151,128.12,128.1,0.0499503]
[1742585259536,0.05810151,128.12,128.1,7.8598503]
[1742585260233,0.05810151,128.12,128.1,0.0499503]
[1742585262337,0.05810151,128.12,128.11,25.56637963]
[1742585262631,35.2558,128.17,128.11,56.66637963]
[1742585262835,9.01574123,128.16,128.11,48.85687963]
[1742585263024,5.15898503,128.15,128.11,48.85687963]
[1742585263335,9.01574123,128.14,128.11,48.85687963]
[1742585263534,3.8567562,128.14,128.11,48.85687963]
[1742585263733,35.2558,128.17,128.11,48.85687963]
[1742585263932,0.05679177,128.14,128.11,48.90643327]
[1742585264341,0.05679177,128.14,128.13,7.8083]
[1742585264542,5.21996185,128.14,128.13,7.8083]
[1742585264738,9.08014576,128.14,128.13,7.8083]
[1742585264936,3.91697568,128.14,128.13,7.8083]
[1742585265239,0.05679177,128.14,128.13,7.8083]
[1742585266041,5.21862272,128.14,128.11,0.04955364]
[1742585266338,0.05679177,128.14,128.11,0.04955364]
[1742585266538,5.16358935,128.13,128.11,0.04955364]
[1742585266742,0.05679177,128.14,128.11,0.04955364]
[1742585266938,5.16316333,128.13,128.11,0.04955364]
[1742585267240,0.05679177,128.14,128.11,0.04955364]
[1742585267444,5.16192862,128.13,128.11,0.04955364]
[1742585267643,3.85887307,128.13,128.11,7.85875364]
[1742585267847,7.86449177,128.14,128.11,7.85875364]
[1742585268041,5.16110263,128.13,128.11,0.04955364]
[1742585268341,7.8083,128.13,128.11,0.04955364]
[1742585268543,0.05679177,128.14,128.11,0.04955364]
[1742585268735,5.16133513,128.13,128.11,0.04955364]
[1742585268936,12.96820549,128.12,128.11,0.04955364]
[1742585269246,44.04818881,128.12,128.11,0.04955364]
[1742585269545,47.90397548,128.12,128.11,0.04955364]
[1742585272042,7.8113,128.08,128.04,257.62]
[1742585272249,31.08,128.09,128.04,257.62]
[1742585272547,38.8906,128.1,128.07,7.8118]
[1742585272840,9.01664854,128.09,128.07,7.8118]
[1742585273043,5.15928639,128.08,128.07,7.8118]
[1742585273245,5.15928639,128.08,128.07,0.05084335]
[1742585273647,3.85578667,128.08,128.07,0.05084335]
[1742585273852,3.85578667,128.08,128.07,7.86274335]
[1742585274147,7.87024696,128.09,128.07,7.86274335]
[1742585274349,5.16051626,128.08,128.07,7.86274335]
[1742585274652,7.87024696,128.09,128.07,7.86274335]
[1742585275143,7.8113,128.08,128.07,0.05084335]
[1742585275343,12.97259729,128.08,128.07,0.05084335]
[1742585275646,16.82999161,128.08,128.07,0.05084335]
[1742585277349,9.01869161,128.08,128.07,0.05084335]
[1742585278452,16.82999161,128.08,128.07,0.05084335]
[1742585278749,9.02401119,128.08,128.07,0.05084335]
[1742585279255,9.02401119,128.08,128.07,7.86274335]
[1742585279551,0.05944696,128.09,128.07,0.05084335]
[1742585279751,0.05944696,128.09,128.08,7.8113]
[1742585279949,5.22991894,128.09,128.08,7.8113]
[1742585280142,0.05944696,128.09,128.08,7.8113]
[1742585281850,0.05944696,128.09,128.08,38.8913]
[1742585283950,10.70640493,128.16,128.08,40.9888]
[1742585284146,5.17014731,128.15,128.11,17.75687963]
[1742585284456,10.70640493,128.16,128.11,17.75687963]
[1742585284457,5.17014731,128.14,128.13,7.8083]
[1742585285654,0.04983122,128.15,128.14,7.8077]
[1742585285857,5.21883847,128.15,128.14,7.8077]
[1742585287954,36.27883847,128.15,128.12,0.05118484]
[1742585288154,5.16900725,128.14,128.12,0.05118484]
[1742585288461,5.16900725,128.13,128.12,0.05118484]
[1742585288653,12.97730725,128.13,128.12,0.05118484]
[1742585289355,5.16900725,128.13,128.12,0.05118484]
[1742585289560,5.16658474,128.13,128.12,0.05118484]
[1742585289954,5.16658474,128.13,128.12,7.86008484]
[1742585290856,5.16658474,128.13,128.12,0.05118484]
[1742585291258,5.16658474,128.13,128.12,7.86008484]
[1742585292363,38.868,128.14,128.12,7.86008484]
[1742585292661,38.868,128.14,128.12,0.05118484]
[1742585293054,7.8083,128.13,128.12,0.05118484]
[1742585294957,31.06,128.14,128.08,7.8109]
[1742585295168,17.75687963,128.13,128.07,7.8117]
[1742585295665,17.75687963,128.11,128.06,7.8122]
[1742585295963,31.06,128.1,128.06,7.8122]
[1742585296164,31.11050644,128.1,128.07,7.86810289]
[1742585296362,31.11050644,128.1,128.07,0.05620289]
[1742585296563,7.811,128.09,128.07,0.05620289]
[1742585296764,33.16270644,128.1,128.07,0.05620289]
[1742585297065,31.11050644,128.1,128.07,0.05620289]
[1742585297563,38.92090644,128.1,128.08,7.8112]
[1742585297959,31.11050644,128.1,128.07,0.05620289]
[1742585298754,7.8112,128.09,128.07,0.05620289]
[1742585300464,7.8113,128.08,128.07,0.05620289]
[1742585301264,7.811,128.09,128.07,0.05620289]
[1742585301458,7.811,128.09,128.07,7.86780289]
[1742585301658,31.11050644,128.1,128.07,0.05620289]
[1742585301659,38.92090644,128.1,128.07,0.05620289]
[1742585302166,38.92090644,128.1,128.08,7.8113]
[1742585303560,38.92090644,128.1,128.07,7.86780289]
[1742585304269,38.92090644,128.1,128.07,0.05620289]
[1742585304668,7.8107,128.09,128.07,0.05620289]
[1742585305565,7.8107,128.09,128.07,7.86770289]
[1742585306160,7.8113,128.08,128.07,0.05620289]
[1742585307772,7.811,128.09,128.07,7.86810289]
[1742585309270,31.11050644,128.1,128.07,7.86810289]
[1742585309271,7.8113,128.08,128.07,0.05620289]
[1742585310074,31.11050644,128.1,128.07,0.05620289]
[1742585310775,7.8108,128.09,128.07,0.05620289]
[1742585311666,7.8108,128.09,128.07,7.86780289]
[1742585313270,7.8113,128.08,128.07,0.05620289]
[1742585317175,19.19613737,128.08,128.07,0.05620289]
[1742585318777,24.37066095,128.08,128.07,0.05620289]
[1742585320278,24.36829013,128.08,128.07,0.05620289]
[1742585321683,24.3668151,128.08,128.07,0.05620289]
[1742585329393,41.79691137,128.1,128.07,11.44104026]
[1742585329595,5.17962929,128.09,128.07,11.44104026]
[1742585329792,5.17962929,128.08,128.07,11.44104026]
[1742585330396,5.17962929,128.08,128.07,7.86810289]
[1742585330896,31.09050644,128.1,128.07,7.86810289]
[1742585331097,7.811,128.09,128.07,7.86810289]
[1742585331593,38.90090644,128.1,128.07,7.86810289]
[1742585331987,31.09050644,128.1,128.07,7.86810289]
[1742585332587,11.43534381,128.1,128.07,0.05620289]
[1742585332788,11.38483737,128.08,128.07,0.05620289]
[1742585332987,7.8135,128.05,128.01,15.60723737]
[1742585333294,42.42483737,128.06,128.01,15.60723737]
[1742585333887,7.8143,128.04,128.01,23.42263737]
[1742585334088,0.05012986,128.04,128.01,21.35436315]
[1742585334686,7.86422986,128.04,128.01,19.25226315]
[1742585334892,42.42483737,128.03,128.01,0.05202578]
[1742585335092,11.38483737,128.02,128.01,0.05202578]
[1742585335287,19.19983737,128.02,128.01,0.05202578]
[1742585337197,38.8547,128.03,128.01,0.05202578]
[1742585341900,31.04,128.03,128.01,7.86762578]
[1742585342303,31.04,128.03,128.01,0.05202578]
[1742585342502,7.815,128.02,128.01,0.05202578]
[1742585344598,38.8546,128.03,128.01,0.05202578]
[1742585344997,31.04,128.03,128.01,0.05202578]
[1742585345401,7.815,128.02,128.01,0.05202578]
[1742585346898,17.80626868,128.02,127.89,257.82]
[1742585347206,17.80626868,128.0,127.91,17.80626868]
[1742585347507,31.02,127.99,127.91,17.80626868]
[1742585348101,0.05984968,127.96,127.94,0.05558077]
[1742585348306,14.26581492,127.95,127.94,0.05558077]
[1742585349101,5.48685189,127.95,127.94,7.87548077]
[1742585349299,5.48685189,127.95,127.94,0.05558077]
[1742585350003,5.48685189,127.95,127.94,7.87548077]
[1742585350208,5.48685189,127.95,127.94,0.05558077]
[1742585351601,22.06545883,127.95,127.94,0.05558077]
[1742585352408,7.8209,127.93,127.89,264.1475]
[1742585352604,38.8409,127.93,127.89,4.244]
[1742585353605,0.05965401,127.92,127.9,0.02489335]
[1742585354721,0.05965401,127.92,127.91,7.8217]
[1742585356416,0.05965401,127.92,127.9,0.02489335]
[1742585356615,5.4582419,127.91,127.9,0.02489335]
[1742585357122,19.29433297,127.92,127.9,0.02489335]
[1742585357513,11.47293297,127.92,127.9,0.02489335]
[1742585357822,19.29443297,127.92,127.9,0.02489335]
[1742585358412,7.8217,127.91,127.9,0.02489335]
[1742585358616,25.58965429,127.91,127.84,11.41327896]
[1742585358812,11.41327896,127.89,127.84,11.41327896]
[1742585359015,31.02,127.88,127.87,7.8241]
[1742585359218,31.02,127.88,127.85,11.41327896]
[1742585359717,31.07407609,127.88,127.85,11.41327896]
[1742585360222,31.07407609,127.88,127.84,11.41327896]
[1742585360422,31.07407609,127.88,127.86,7.8244]
[1742585361116,31.07407609,127.88,127.85,11.41327896]
[1742585361318,31.07407609,127.88,127.86,11.41327896]
[1742585361822,31.07407609,127.88,127.87,7.8241]
[1742585362022,31.07407609,127.88,127.83,35.152]
[1742585362222,31.07407609,127.88,127.84,11.41327896]
[1742585362423,31.07407609,127.88,127.85,11.41327896]
[1742585362926,31.07407609,127.88,127.86,7.8245]
[1742585363714,31.07407609,127.88,127.86,11.41327896]
[1742585364218,38.8614,127.92,127.86,11.46342033]
[1742585364423,5.43632366,127.91,127.88,11.41327896]
[1742585364725,38.8614,127.92,127.89,7.8224]
[1742585364922,13.25870813,127.91,127.88,11.41327896]
[1742585365126,7.8222,127.91,127.87,11.41327896]
[1742585365327,7.87160726,127.91,127.88,7.87379334]
[1742585365522,0.04940726,127.91,127.88,7.87379334]
[1742585365718,5.48602238,127.91,127.88,7.87379334]
[1742585366120,5.48602238,127.91,127.89,7.8229]
[1742585366529,13.30802238,127.91,127.89,7.8229]
[1742585366719,7.87140726,127.91,127.88,7.87389334]
[1742585368628,7.87140726,127.91,127.89,7.8228]
[1742585369123,0.04940726,127.91,127.88,0.05059334]
[1742585369523,0.04940726,127.91,127.89,11.41327896]
[1742585370122,0.04940726,127.91,127.9,7.8223]
[1742585372229,0.04940726,127.91,127.9,19.23557896]
[1742585372422,0.04940726,127.91,127.9,7.8223]
[1742585374833,31.02,127.98,127.9,19.23327896]
[1742585375037,14.14369256,127.97,127.95,11.41327896]
[1742585375225,5.43988175,127.96,127.95,11.41327896]
[1742585375426,5.43988175,127.96,127.94,11.41327896]
[1742585375628,31.02,127.98,127.94,11.41327896]
[1742585375929,14.20935029,127.97,127.95,0.0545967]
[1742585376133,5.44440927,127.96,127.95,0.0545967]
[1742585376632,0.05388618,127.97,127.95,7.8738967]
[1742585377036,5.27850619,127.96,127.95,0.0545967]
[1742585377826,13.09710619,127.96,127.95,0.0545967]
[1742585378042,24.51038515,127.96,127.95,0.0545967]
[1742585378434,13.09710619,127.96,127.95,0.0545967]
[1742585378832,5.27850619,127.96,127.95,0.0545967]
[1742585379635,5.27850619,127.96,127.95,7.8738967]
[1742585380334,5.27850619,127.96,127.95,0.0545967]
[1742585381430,13.09710619,127.96,127.95,0.0545967]
[1742585381635,13.11278034,127.96,127.95,0.0545967]
[1742585382343,24.5260593,127.96,127.95,0.0545967]
[1742585384031,24.5272147,127.96,127.95,0.0545967]
[1742585384941,7.8205,127.94,127.91,7.8213]
[1742585385147,5.29533574,127.93,127.91,7.8213]
[1742585385342,16.7086147,127.92,127.86,15.56117896]
[1742585385552,11.41327896,127.9,127.86,2.1359]
[1742585385748,5.29585368,127.89,127.85,269.45327896]
[1742585385933,0.0594871,127.88,127.86,0.04888665]
[1742585386140,0.0594871,127.88,127.86,11.46216561]
[1742585386741,0.0594871,127.88,127.87,19.23697896]
[1742585386941,31.0,127.92,127.87,11.41327896]
[1742585387150,5.29747019,127.91,127.88,11.41327896]
[1742585387450,5.29747019,127.9,127.88,11.41327896]
[1742585387650,38.8214,127.92,127.88,11.41327896]
[1742585387844,5.29940253,127.91,127.88,11.41327896]
[1742585388037,5.29940253,127.9,127.89,7.88176077]
[1742585388237,5.29940253,127.9,127.89,0.05916077]
[1742585389646,5.29940253,127.9,127.89,7.88206077]
[1742585391246,5.30931031,127.9,127.89,7.88206077]
[1742585393148,5.30947258,127.9,127.89,0.05916077]
[1742585393657,5.30947258,127.9,127.89,7.88176077]
[1742585394153,5.30947258,127.9,127.89,0.05916077]
[1742585394650,13.13177258,127.9,127.89,0.05916077]
[1742585395442,5.30947258,127.9,127.89,0.05916077]
[1742585396454,5.30947258,127.9,127.89,7.88206077]
[1742585396652,5.30947258,127.9,127.89,0.05916077]
[1742585397349,13.13177258,127.9,127.89,0.05916077]
[1742585397552,5.30947258,127.9,127.89,0.05916077]
[1742585398458,5.30947258,127.9,127.89,7.88206077]
[1742585401047,8.374e-05,127.91,127.9,7.8223]
[1742585401247,18.52420493,127.98,127.9,17.83107219]
[1742585401452,10.70640493,127.98,127.96,7.8182]
[1742585402759,10.76024751,127.98,127.96,7.86891045]
[1742585402954,10.76024751,127.98,127.97,7.818]
[1742585404356,0.05384258,127.98,127.97,7.818]
[1742585405351,43.33174709,128.03,127.97,30.98]
[1742585406352,0.05222886,128.01,127.99,0.05460802]
[1742585407161,0.05222886,128.01,128.0,7.8159]
[1742585407363,0.05222886,128.01,127.99,0.05460802]
[1742585408949,0.05222886,128.01,128.0,7.8162]
[1742585409155,0.05222886,128.01,127.99,11.44667967]
[1742585409558,11.44430051,128.01,127.99,0.05460802]
[1742585409759,42.35207165,128.0,127.99,0.05460802]
[1742585410158,50.16827165,128.0,127.99,0.05460802]
[1742585410360,42.35207165,128.0,127.93,11.39207165]
[1742585410562,7.8191,127.96,127.93,7.8202]
[1742585411060,7.8201,127.94,127.91,277.21347165]
[1742585411265,11.39207165,127.95,127.91,258.0]
[1742585411564,0.05458517,127.94,127.92,0.04955621]
[1742585411764,0.05458517,127.94,127.92,7.87025621]
[1742585412352,0.05458517,127.94,127.93,19.21257165]
[1742585412556,30.96,128.0,127.96,11.39207165]
[1742585413054,30.96,128.0,127.97,7.8179]
[1742585413455,30.96,128.0,127.94,17.80740163]
[1742585413658,0.05621196,128.0,127.99,7.8168]
[1742585414955,1.196e-05,128.0,127.99,7.8168]
[1742585415157,30.96,128.06,127.98,53.07440163]
[1742585415352,17.80740163,128.07,127.98,53.07440163]
[1742585415567,30.96,128.06,127.98,53.07440163]
[1742585415766,17.80740163,128.05,127.98,48.76740163]
[1742585416367,0.05411135,128.03,128.0,0.0550065]
[1742585417165,0.05411135,128.03,128.0,17.86240813]
[1742585417357,0.05411135,128.03,128.02,7.815]
[1742585417558,0.05411135,128.03,128.0,17.86240813]
[1742585418869,0.05411135,128.03,128.0,0.0550065]
[1742585419169,0.05411135,128.03,128.01,7.8155]
[1742585420463,7.86861135,128.03,128.0,0.0550065]
[1742585421065,0.05411135,128.03,128.01,7.8156]
[1742585421966,0.05411135,128.03,128.02,7.815]
[1742585422669,0.05411135,128.03,128.01,7.8153]
[1742585423573,0.05411135,128.03,128.0,0.0550065]
[1742585424073,7.8156,128.01,128.0,0.0550065]
[1742585425772,7.8153,128.02,128.0,7.8711065]
[1742585425972,0.05411135,128.03,128.0,48.80240813]
[1742585426169,0.05411135,128.03,128.02,7.815]
[1742585426471,0.05411135,128.03,128.0,48.80240813]
[1742585427474,0.05411135,128.03,128.02,7.815]
[1742585428466,0.05411135,128.03,128.01,7.8152]
[1742585428770,0.05411135,128.03,128.0,48.80240813]
[1742585429170,0.05411135,128.03,128.02,7.815]
[1742585436173,7.8156,128.01,128.0,0.0550065]
[1742585439177,7.8187,127.96,127.92,308.53070163]
[1742585440177,0.05670075,127.95,127.93,0.05825592]
[1742585441073,7.87600075,127.95,127.93,0.05825592]
[1742585442073,7.8199,127.94,127.93,0.05825592]
[1742585442967,38.7399,127.94,127.93,0.05825592]
[1742585444678,38.7399,127.94,127.87,269.10891125]
[1742585444679,30.92,127.94,127.87,1.36041125]
[1742585444883,17.80740163,127.92,127.84,17.80740163]
[1742585445080,30.92,127.91,127.84,17.80740163]
[1742585445481,7.8243,127.87,127.84,17.80740163]
[1742585445782,30.92,127.91,127.84,17.80740163]
[1742585445984,0.05091421,127.87,127.84,17.86472699]
[1742585446786,0.05091421,127.87,127.84,25.69062699]
[1742585446983,0.05091421,127.87,127.84,17.86472699]
[1742585447187,0.05091421,127.87,127.84,0.05732536]
[1742585449177,7.87521421,127.87,127.84,0.05732536]
[1742585450093,7.8249,127.86,127.84,0.05732536]
[1742585450278,30.92,127.85,127.84,0.05732536]
[1742585451384,38.7454,127.85,127.84,0.05732536]
[1742585451584,30.92,127.85,127.84,0.05732536]
[1742585452184,38.7454,127.85,127.84,0.05732536]
[1742585453582,30.92,127.85,127.84,0.05732536]
[1742585456488,38.7454,127.85,127.84,0.05732536]
[1742585457083,7.826,127.84,127.8,7.8281]
[1742585457283,17.80740163,127.84,127.78,7.8292]
[1742585457588,6.1906,127.83,127.74,17.80740163]
[1742585457788,14.0175,127.83,127.74,17.80740163]
[1742585457983,30.92,127.82,127.74,17.80740163]
[1742585458186,30.92,127.82,127.78,7.8291]
[1742585458489,0.05366418,127.79,127.78,7.8291]
[1742585462391,30.97366418,127.79,127.77,7.88048806]
[1742585463299,30.97366418,127.79,127.78,7.8297]
[1742585463901,30.97366418,127.79,127.77,7.88048806]
[1742585464202,30.97366418,127.79,127.77,0.05048806]
[1742585465100,30.97366418,127.79,127.77,7.88048806]
[1742585467905,38.80276418,127.79,127.77,7.88048806]
[1742585468114,38.80276418,127.79,127.77,0.05048806]
[1742585468305,30.97366418,127.79,127.77,0.05048806]
[1742585468898,7.8297,127.78,127.77,0.05048806]
[1742585469393,7.8297,127.78,127.77,8.806e-05]
[1742585469598,25.63710163,127.78,127.77,8.806e-05]
[1742585469793,38.7497,127.78,127.77,8.806e-05]
[1742585473505,0.05366418,127.79,127.77,8.806e-05]
[1742585474001,30.97366418,127.79,127.77,8.806e-05]
[1742585474510,30.97366418,127.79,127.78,7.8297]
[1742585475808,0.05366418,127.79,127.78,7.8297]
[1742585476313,43.33174709,127.84,127.83,7.8266]
[1742585476514,74.25174709,127.84,127.83,7.8266]
[1742585478109,30.92,127.84,127.83,7.8266]
[1742585478315,30.97913874,127.85,127.82,0.05219849]
[1742585478608,0.05913874,127.85,127.82,0.05219849]
[1742585480011,0.05913874,127.85,127.83,17.80740163]
[1742585480413,0.05913874,127.85,127.84,7.826]
[1742585482218,0.05913874,127.85,127.83,7.8264]
[1742585483217,0.05913874,127.85,127.82,32.94819849]
[1742585484219,0.05913874,127.85,127.83,7.8262]
[1742585485020,0.05913874,127.85,127.82,32.94819849]
[1742585487526,0.05913874,127.85,127.84,7.826]
[1742585492323,7.8228,127.9,127.87,7.8237]
[1742585492617,30.88,127.9,127.84,17.80740163]
[1742585492825,30.88,127.9,127.85,33.0483]
[1742585493013,30.88,127.9,127.89,7.8229]
[1742585493723,30.88,127.9,127.88,0.05099594]
[1742585493912,30.88,127.9,127.88,7.87399594]
[1742585494118,30.88,127.9,127.88,0.05099594]
[1742585494722,0.05914999,127.91,127.88,0.05099594]
[1742585495821,0.05914999,127.91,127.9,7.8223]
[1742585498730,0.05914999,127.91,127.9,25.62970163]
[1742585498918,30.86,127.96,127.92,17.80740163]
[1742585499122,30.86,127.98,127.92,17.80740163]
[1742585499319,7.8184,127.97,127.92,17.80740163]
[1742585499529,48.66740163,127.98,127.91,30.86]
[1742585499931,7.8202,127.94,127.93,0.05182652]
[1742585501031,38.6795,127.95,127.93,0.05182652]
[1742585501529,30.86,127.95,127.93,0.05182652]
[1742585501837,0.05095921,127.96,127.95,7.8193]
[1742585505329,0.05095921,127.96,127.94,25.62690163]
[1742585505639,0.05095921,127.96,127.94,17.80740163]
[1742585506137,0.05095921,127.96,127.95,7.8193]
[1742585506634,0.05095921,127.96,127.93,6.16102652]
[1742585506635,0.05095921,127.96,127.93,11.98992652]
[1742585506829,0.05095921,127.96,127.93,0.05182652]
[1742585507837,0.05095921,127.96,127.94,7.8195]
[1742585514246,0.05095921,127.96,127.93,0.05182652]
[1742585515041,0.05095921,127.96,127.94,17.80740163]
[1742585515545,0.05095921,127.96,127.95,7.8193]
[1742585520245,5.921e-05,127.96,127.95,7.8193]
[1742585520449,30.82,128.04,127.95,2.024]
[1742585520645,30.82,128.04,127.97,17.80740163]
[1742585520842,38.634,128.04,128.01,7.8153]
[1742585521038,30.82,128.04,127.97,48.62740163]
[1742585521343,7.8144,128.03,127.97,48.62740163]
[1742585521545,0.05414825,128.02,128.0,7.8159]
[1742585521749,0.05414825,128.02,127.99,0.05567749]
[1742585522448,7.8161,128.01,127.99,0.05567749]
[1742585522851,0.05414825,128.02,127.99,0.05567749]
[1742585523049,7.8162,128.0,127.99,0.05567749]
[1742585536365,11.45060942,128.02,127.99,0.05567749]
[1742585536566,11.45060942,128.02,128.0,11.39646117]
[1742585536567,0.05414825,128.02,128.0,11.39646117]
[1742585536963,0.05414825,128.02,128.01,7.8156]
[1742585537971,0.05414825,128.02,128.01,19.21206117]
[1742585538262,0.05414825,128.02,128.01,49.99206117]
[1742585542178,19.20856117,128.07,128.03,7.8144]
[1742585542480,11.39646117,128.07,128.03,11.39646117]